bitfinex-derivatives/quotes_ETHF0:USTF0_20251009
["timestamp","ask_amount","ask_price","bid_price","bid_amount"]
[1760013626476,0.565,4395.4,4395.3,0.4094]
[1760013627174,0.565,4395.4,4395.3,0.41204773]
[1760013627675,0.565,4395.4,4395.3,0.00264773]
[1760013628774,0.3414,4394.9,4394.7,0.40945]
[1760013629073,0.4733,4395.0,4394.9,0.40944]
[1760013629671,0.4733,4395.0,4394.9,0.00194138]
[1760013630274,0.3414,4395.4,4395.3,0.4094]
[1760013630572,0.1332,4395.5,4395.3,0.4094]
[1760013630769,0.3414,4395.8,4395.7,0.40936]
[1760013631564,0.3414,4395.8,4395.7,41.20936]
[1760013632983,0.3414,4395.8,4395.7,40.8]
[1760013634876,3.2078,4396.2,4395.7,40.8]
[1760013635080,0.3414,4395.9,4395.8,0.40935]
[1760013636386,0.1819,4396.2,4396.1,0.0728]
[1760013637680,3.2078,4396.7,4396.2,1.0233]
[1760013637883,3.2078,4396.7,4396.6,0.40928]
[1760013637884,3.5492,4396.7,4396.6,0.40928]
[1760013638285,3.2078,4396.7,4396.2,0.231]
[1760013638484,0.3414,4396.4,4396.2,0.40931]
[1760013638687,0.3414,4396.4,4396.3,0.40931]
[1760013639378,0.1319,4396.5,4396.3,0.48211]
[1760013639590,3.2078,4396.7,4396.6,0.40928]
[1760013639785,3.5492,4396.7,4396.6,0.40928]
[1760013641084,3.5492,4396.7,4396.6,41.20928]
[1760013642283,3.2078,4396.7,4396.6,41.28208]
[1760013642482,3.2078,4396.7,4396.6,41.51308]
[1760013642687,0.1819,4397.0,4396.9,0.40925]
[1760013643090,0.57516644,4397.3,4397.2,0.40922]
[1760013643387,0.3414,4397.2,4397.1,0.40923]
[1760013643787,0.54114,4397.0,4396.6,44.41707]
[1760013643989,0.3414,4396.8,4396.7,0.40927]
[1760013644591,0.1319,4397.0,4396.7,0.40927]
[1760013644781,0.00276644,4397.3,4397.2,0.48182]
[1760013645791,0.00276644,4397.3,4397.2,8.68962]
[1760013645996,0.00276644,4397.3,4397.2,49.48962]
[1760013647799,3.2078,4398.5,4398.4,0.40911]
[1760013648094,3.6675,4398.5,4398.4,0.40911]
[1760013648893,0.00235079,4398.5,4398.4,0.41195901]
[1760013649090,0.46205079,4398.5,4398.4,0.41195901]
[1760013649300,0.00235079,4398.5,4398.4,41.21195901]
[1760013649686,0.46205079,4398.5,4398.4,41.21195901]
[1760013651194,0.00235079,4398.5,4398.4,41.21195901]
[1760013651998,0.33535079,4398.5,4398.4,41.21195901]
[1760013652296,0.46205079,4398.5,4398.4,41.21195901]
[1760013655900,0.00235079,4398.5,4398.4,41.21195901]
[1760013656095,0.333,4399.1,4398.9,0.40907]
[1760013656298,0.333,4399.1,4399.0,0.231]
[1760013656498,3.3345,4399.5,4399.0,0.231]
[1760013656802,0.333,4399.4,4399.0,0.231]
[1760013657000,0.333,4399.4,4399.3,0.40903]
[1760013657199,0.33576077,4399.4,4399.3,41.44003]
[1760013658399,5.33576077,4399.4,4399.3,40.8]
[1760013658604,0.5642,4398.7,4398.6,0.64009]
[1760013658806,0.3466,4398.7,4398.6,0.64009]
[1760013659101,0.3466,4398.7,4398.6,41.031]
[1760013660203,0.3466,4398.7,4398.6,40.8]
[1760013661802,0.3466,4398.9,4398.7,0.40908]
[1760013662001,0.7071,4399.0,4398.9,0.40907]
[1760013662900,0.4773,4399.0,4398.9,0.40907]
[1760013663497,0.7071,4399.0,4398.9,0.40907]
[1760013663700,0.4773,4399.0,4398.9,0.40907]
[1760013664909,0.4773,4399.0,4398.9,0.64007]
[1760013665703,3.5544,4399.3,4399.2,0.40904]
[1760013665900,4.0071,4399.3,4399.2,0.64004]
[1760013666408,3.2078,4399.3,4399.2,0.64004]
[1760013667010,3.2078,4399.3,4399.2,41.44004]
[1760013667207,0.34936077,4399.4,4399.2,44.64784]
[1760013667504,0.3466,4399.3,4399.2,44.64784]
[1760013667704,0.3466,4399.3,4399.2,41.20904]
[1760013667906,0.00276077,4399.4,4399.2,44.64784]
[1760013668105,0.3466,4399.3,4399.2,44.64784]
[1760013668407,0.3466,4399.3,4399.2,41.44004]
[1760013668914,0.00276077,4399.4,4399.2,44.64784]
[1760013669306,3.2078,4399.9,4399.8,0.40898]
[1760013669508,3.2078,4399.9,4399.8,0.63998]
[1760013669714,3.2078,4399.9,4399.8,5.63998]
[1760013669906,0.1818,4400.0,4399.8,5.63998]
[1760013670105,0.1818,4400.0,4399.9,40.8]
[1760013670307,0.18415778,4400.0,4399.9,40.8]
[1760013670613,7.78e-06,4400.0,4399.9,40.8]
[1760013671514,7.78e-06,4400.0,4399.9,44.0078]
[1760013672608,7.78e-06,4400.0,4399.9,49.0078]
[1760013673213,0.1307,4401.0,4399.9,49.0078]
[1760013673513,0.4773,4401.0,4400.9,0.40888]
[1760013673907,0.7071,4401.0,4400.9,0.40888]
[1760013674112,0.4773,4401.0,4400.9,0.40888]
[1760013674312,0.47959691,4401.0,4400.9,41.20888]
[1760013675417,3.68739691,4401.0,4400.9,41.20888]
[1760013676110,0.47959691,4401.0,4400.9,41.20888]
[1760013679208,0.13299691,4401.0,4400.9,41.20888]
[1760013679513,2.24381191,4402.6,4400.9,41.20888]
[1760013679514,0.3466,4402.8,4400.9,51.05219]
[1760013679819,0.2298,4402.7,4402.6,0.40872]
[1760013680010,0.2298,4402.7,4402.6,0.63872]
[1760013680213,0.2298,4402.7,4402.6,40.8]
[1760013680414,4.0071,4402.7,4402.6,41.03]
[1760013680715,0.578633,4402.7,4402.6,40.8017709]
[1760013681012,0.348833,4402.7,4402.6,40.8017709]
[1760013681415,0.002233,4402.7,4402.6,41.0317709]
[1760013681916,0.348833,4402.7,4402.6,41.0317709]
[1760013682317,0.348833,4402.7,4402.6,40.8017709]
[1760013682514,0.348833,4402.7,4402.6,41.0317709]
[1760013682720,0.002233,4402.7,4402.6,41.0317709]
[1760013683214,0.348833,4402.7,4402.6,41.0317709]
[1760013683412,0.348833,4402.7,4402.6,40.8017709]
[1760013684118,0.358833,4402.7,4402.6,40.8017709]
[1760013684821,0.811533,4402.7,4402.6,0.0017709]
[1760013685019,0.012233,4402.7,4402.6,0.4104909]
[1760013685317,0.012233,4402.7,4402.6,41.2104909]
[1760013685520,0.358833,4402.7,4402.6,41.2104909]
[1760013685716,0.358833,4402.7,4402.6,40.8017709]
[1760013686023,0.358833,4402.7,4402.6,41.0327709]
[1760013686321,0.358833,4402.7,4402.6,40.8017709]
[1760013688020,0.012233,4402.7,4402.6,41.0327709]
[1760013688818,0.022,4402.9,4402.6,46.0327709]
[1760013689010,4.83712255,4405.5,4403.2,10.21674]
[1760013689210,0.1275,4405.0,4404.6,0.40853]
[1760013689415,0.4657,4405.0,4404.9,3.2078]
[1760013689621,0.4657,4405.0,4404.9,44.2388]
[1760013689915,0.1275,4406.0,4404.9,44.2388]
[1760013689916,0.1275,4406.0,4405.9,0.40842]
[1760013690223,0.022,4407.9,4406.4,0.40837]
[1760013690224,0.1275,4407.0,4406.4,0.40837]
[1760013690411,0.1275,4408.0,4406.7,1.02085]
[1760013690614,0.12912551,4408.0,4407.9,44.0078]
[1760013690814,0.12912551,4408.0,4407.9,40.8]
[1760013691420,5.12912551,4408.0,4407.9,40.8]
[1760013691615,0.1275,4408.5,4407.9,44.2408]
[1760013691818,0.4657,4408.5,4408.4,3.2078]
[1760013692013,0.1275,4408.5,4408.4,3.4408]
[1760013692215,0.1275,4408.5,4408.4,3.2078]
[1760013692419,0.1275,4408.5,4408.4,3.4408]
[1760013692616,0.13044196,4408.5,4408.4,3.4408]
[1760013692814,0.13044196,4408.5,4408.4,44.2408]
[1760013694022,0.46864196,4408.5,4408.4,44.2408]
[1760013694424,0.46864196,4408.5,4408.4,40.8]
[1760013695230,0.3382,4407.4,4407.3,3.61609]
[1760013695423,0.3382,4407.4,4407.3,3.84909]
[1760013695823,0.3382,4407.4,4407.3,8.2078]
[1760013696033,0.3382,4407.4,4407.3,8.4408]
[1760013696231,0.3382,4407.4,4407.3,44.0078]
[1760013696430,0.3382,4407.4,4407.3,44.2408]
[1760013697236,0.1275,4408.0,4407.9,0.40823]
[1760013697428,0.1275,4408.0,4407.9,3.84903]
[1760013697835,0.1275,4408.0,4407.9,44.64903]
[1760013698031,0.1275,4408.0,4407.9,44.0078]
[1760013698440,0.1275,4408.0,4407.9,44.64903]
[1760013699135,0.14044196,4408.5,4408.4,0.40818]
[1760013699331,3.2078,4409.4,4408.9,0.40814]
[1760013699530,3.2078,4409.4,4408.9,0.64114]
[1760013699727,0.4657,4409.0,4408.9,0.64114]
[1760013700435,0.3382,4409.9,4409.8,0.40805]
[1760013700639,0.3382,4409.9,4409.8,3.84885]
[1760013701331,0.3382,4409.9,4409.8,3.61585]
[1760013701536,0.34052513,4409.9,4409.8,3.85123521]
[1760013702133,0.1275,4410.0,4409.8,3.85123521]
[1760013702332,0.1275,4411.0,4409.8,3.44318521]
[1760013702531,0.1275,4411.0,4410.8,0.40795]
[1760013702837,0.1275,4411.0,4410.9,3.4418]
[1760013703234,0.12927994,4411.0,4410.9,3.2078]
[1760013703441,0.12927994,4411.0,4410.9,44.2418]
[1760013703837,0.1275,4412.0,4411.8,0.40786]
[1760013704139,0.1275,4412.0,4411.6,3.2078]
[1760013704341,0.6998513,4411.8,4411.6,3.2078]
[1760013704637,0.3209,4411.4,4411.1,3.4418]
[1760013705035,0.00212147,4411.4,4411.1,3.4418]
[1760013705230,0.40792,4411.3,4411.1,3.2078]
[1760013705436,0.00212147,4411.4,4407.7,2.04122]
[1760013705437,0.3209,4410.9,4410.8,0.234]
[1760013705736,0.1265,4411.0,4410.6,3.2078]
[1760013705737,0.53444,4411.0,4410.6,3.2078]
[1760013705939,0.3209,4410.4,4410.3,0.234]
[1760013706140,0.1265,4410.5,4410.0,3.2078]
[1760013706437,0.1265,4410.5,4409.6,0.234]
[1760013706438,0.3209,4409.9,4409.6,0.234]
[1760013706637,0.3209,4409.9,4409.8,0.23638521]
[1760013706837,0.3209,4409.9,4409.8,0.64443521]
[1760013707044,0.3209,4409.9,4409.8,0.23638521]
[1760013707243,0.6825513,4410.3,4410.2,0.40802]
[1760013707444,0.6825513,4410.3,4410.2,3.84982]
[1760013707941,0.6825513,4410.3,4410.2,3.59382]
[1760013708142,0.6825513,4410.3,4410.2,3.82882]
[1760013708741,0.6825513,4410.3,4410.2,3.4428]
[1760013708939,0.6825513,4410.3,4409.8,0.00238521]
[1760013709140,0.1265,4410.0,4409.8,0.00238521]
[1760013709345,0.1265,4410.0,4409.9,0.235]
[1760013709540,0.4881513,4410.0,4409.8,0.00238521]
[1760013709748,0.3209,4409.9,4409.8,0.00238521]
[1760013710041,0.1265,4409.0,4408.7,3.2078]
[1760013710249,0.3209,4408.9,4408.8,0.235]
[1760013710441,0.1265,4409.0,4408.8,41.035]
[1760013710739,0.1265,4409.5,4408.9,5.0]
[1760013710942,0.1265,4409.5,4408.8,42.05536]
[1760013710943,0.4474,4409.5,4409.4,3.2078]
[1760013711238,0.4474,4409.5,4409.4,0.00251088]
[1760013711444,0.4474,4409.5,4409.4,0.23751088]
[1760013711638,0.4474,4409.5,4409.4,0.00251088]
[1760013711839,5.85548,4409.5,4409.4,0.00251088]
[1760013712342,5.4474,4409.5,4409.4,0.00251088]
[1760013713542,0.4474,4409.5,4409.4,0.41060088]
[1760013713743,0.4474,4409.5,4409.4,0.64460088]
[1760013713938,0.4474,4409.5,4409.4,0.00251088]
[1760013714145,5.4474,4409.5,4409.4,0.00251088]
[1760013714339,5.85548,4409.5,4409.4,0.00251088]
[1760013715743,0.1265,4408.0,4407.8,3.2078]
[1760013715944,0.3209,4407.9,4407.8,3.2078]
[1760013716149,0.3209,4407.4,4407.3,3.2078]
[1760013716345,0.4474,4407.0,4406.9,0.40832]
[1760013716746,0.1265,4407.5,4407.4,0.40828]
[1760013716955,0.1265,4407.5,4407.4,3.85008]
[1760013717448,0.3209,4408.4,4407.8,1.02058]
[1760013717648,0.1265,4408.5,4408.4,0.40818]
[1760013717850,0.1265,4409.5,4408.8,0.40815]
[1760013718049,0.3209,4409.4,4408.9,3.4418]
[1760013718249,0.1265,4409.5,4408.9,3.4418]
[1760013718452,0.467,4409.0,4408.9,3.4418]
[1760013718654,0.467,4409.0,4408.9,8.4418]
[1760013718849,0.12833256,4409.0,4408.9,3.4418]
[1760013719151,0.1265,4409.5,4408.9,8.4418]
[1760013719354,0.4783,4409.0,4408.9,3.2078]
[1760013719651,0.4783,4409.0,4408.4,3.2078]
[1760013719652,0.4783,4408.5,4408.4,3.2078]
[1760013719855,0.4783,4408.5,4408.4,3.4418]
[1760013720044,0.4783,4408.5,4408.4,3.2078]
[1760013720248,0.48059159,4408.5,4408.4,44.0078]
[1760013720452,0.48059159,4408.5,4408.4,40.8]
[1760013721153,0.48059159,4408.5,4407.8,3.2078]
[1760013721154,0.3405,4407.9,4407.8,3.2078]
[1760013721658,0.3405,4407.9,4407.8,44.0078]
[1760013722050,0.3405,4407.9,4407.8,44.2418]
[1760013722250,0.3405,4407.9,4407.8,44.0078]
[1760013722663,0.3405,4407.9,4407.8,44.41604]
[1760013722853,0.3405,4407.9,4407.8,44.0078]
[1760013723555,0.3405,4407.9,4407.8,40.8]
[1760013723855,0.3405,4407.9,4407.8,41.034]
[1760013724559,0.1378,4408.0,4407.9,0.40823]
[1760013724749,0.4783,4408.0,4407.9,0.40823]
[1760013725456,0.1378,4408.0,4407.9,0.64223]
[1760013725758,0.14009159,4408.5,4407.9,0.64223]
[1760013725759,0.14009159,4408.5,4407.9,0.234]
[1760013725960,0.3405,4408.4,4408.3,0.40819]
[1760013726155,0.3405,4408.4,4408.3,0.64219]
[1760013726361,0.14009159,4408.5,4408.3,41.44219]
[1760013727257,0.11202018,4408.5,4408.3,40.8]
[1760013727452,0.11202018,4408.5,4408.4,0.64218]
[1760013727664,0.52020018,4408.5,4408.3,40.8]
[1760013727863,0.52020018,4408.5,4408.3,41.034]
[1760013727864,0.11202018,4408.5,4408.3,41.034]
[1760013728461,0.52020018,4408.5,4408.3,40.8]
[1760013728956,0.54603,4408.0,4407.7,3.2078]
[1760013729163,0.54603,4408.0,4407.8,0.234]
[1760013729359,0.74874,4407.8,4407.7,3.2078]
[1760013729554,0.3405,4407.3,4407.2,3.2078]
[1760013730061,0.3405,4407.3,4407.2,44.0078]
[1760013730362,0.3405,4407.3,4407.2,40.8]
[1760013730363,5.3405,4407.3,4407.2,40.8]
[1760013730762,5.3405,4407.3,4407.2,44.0078]
[1760013730962,0.4783,4407.5,4407.2,44.2418]
[1760013731155,0.4783,4408.0,4407.2,44.2418]
[1760013731362,0.3405,4407.8,4407.7,3.2078]
[1760013731561,0.3405,4407.8,4407.7,3.4418]
[1760013732360,0.3405,4407.8,4407.7,3.2078]
[1760013732564,0.1378,4407.5,4407.4,0.234]
[1760013732864,0.54607,4407.5,4407.4,0.234]
[1760013733066,0.3405,4407.3,4407.2,40.8]
[1760013735069,0.3405,4406.8,4406.7,3.2078]
[1760013735256,0.1378,4407.5,4406.9,1.02081]
[1760013735461,0.1378,4407.5,4407.4,3.61608]
[1760013735657,0.1378,4407.5,4407.4,3.85008]
[1760013736160,0.4783,4407.5,4407.4,3.61815275]
[1760013736465,0.4783,4407.5,4407.4,41.03607275]
[1760013736855,0.4783,4407.5,4407.4,40.80207275]
[1760013737071,0.4783,4407.5,4407.4,41.03607275]
[1760013738270,0.109598,4407.5,4407.4,41.03607275]
[1760013738972,0.1378,4408.0,4407.7,0.40824]
[1760013739272,0.1378,4408.0,4407.9,3.2078]
[1760013740770,0.4783,4408.0,4407.9,3.2078]
[1760013740968,0.1378,4408.0,4407.5,3.2078]
[1760013741167,0.1378,4408.0,4407.4,40.80207275]
[1760013741168,0.88657,4407.5,4407.4,40.80207275]
[1760013741365,0.88657,4407.5,4407.4,41.03507275]
[1760013741763,0.4783,4408.0,4407.4,41.44334275]
[1760013741969,0.3405,4407.9,4407.4,41.03507275]
[1760013742170,0.4783,4407.5,4407.4,41.03507275]
[1760013742365,0.3405,4407.9,4407.5,0.40827]
[1760013742668,0.54602,4408.0,4407.6,3.4408]
[1760013742669,0.3405,4407.7,4407.6,3.4408]
[1760013743471,0.3405,4407.9,4407.6,3.4408]
[1760013743862,0.3405,4407.9,4407.7,0.40825]
[1760013744061,0.3405,4407.9,4406.9,1.02081]
[1760013744062,0.54616,4406.5,4406.4,1.66531718]
[1760013744272,0.40844,4405.6,4405.5,0.4789]
[1760013744476,3.2078,4405.6,4405.5,0.4789]
[1760013744667,0.4084,4406.1,4406.0,0.4789]
[1760013744861,0.91283862,4406.1,4406.0,0.4789]
[1760013745161,0.94421977,4406.1,4406.0,0.48056277]
[1760013746467,3.61619,4406.2,4406.0,0.13646277]
[1760013746669,3.2078,4406.2,4406.1,0.3441]
[1760013747179,3.2078,4406.2,4406.1,0.5771]
[1760013747476,3.2078,4406.7,4406.6,0.75245]
[1760013747872,3.2078,4406.7,4406.6,41.55245]
[1760013748469,3.2078,4407.7,4407.5,0.1274]
[1760013748665,0.233,4407.6,4407.5,0.4571]
[1760013748879,5.233,4407.6,4407.5,0.4571]
[1760013749172,3.2078,4407.7,4407.6,0.3297]
[1760013751676,3.4408,4407.7,4407.6,0.3297]
[1760013752379,3.61601,4408.2,4408.0,0.4571]
[1760013752570,3.2078,4408.2,4408.0,0.53562]
[1760013753284,3.2078,4408.2,4408.1,0.3297]
[1760013755075,0.00229159,4408.5,4408.4,0.73788]
[1760013755583,0.00229159,4408.5,4408.4,0.3297]
[1760013755783,0.00229159,4408.5,4408.4,41.1297]
[1760013761083,0.00229159,4408.5,4408.4,0.3297]
[1760013761487,0.41046159,4408.5,4408.4,0.3297]
[1760013761789,0.64346159,4408.5,4408.4,0.3297]
[1760013762690,0.23529159,4408.5,4408.4,0.3297]
[1760013763893,8.21450014,4408.5,4408.4,0.3297]
[1760013764088,0.40821,4408.1,4408.0,0.1274]
[1760013764393,6.7646593,4408.1,4408.0,0.1274]
[1760013766089,0.1814,4408.8,4408.0,0.1274]
[1760013766090,0.1814,4408.8,4408.7,0.40816]
[1760013766391,0.2175,4410.5,4409.0,1.14773]
[1760013766694,0.3297,4410.4,4410.2,0.73451]
[1760013767189,0.33168267,4410.4,4410.2,0.73708483]
[1760013767386,0.3297,4410.3,4410.2,0.41058483]
[1760013768483,0.3297,4410.3,4410.2,0.00257483]
[1760013769699,0.3297,4410.3,4410.0,0.40803]
[1760013769700,0.3297,4409.9,4409.7,0.40806]
[1760013769992,0.3297,4410.1,4409.7,0.40806]
[1760013770186,0.23498267,4410.4,4409.7,0.40806]
[1760013770187,0.40801,4410.3,4409.7,0.40806]
[1760013770391,0.73772,4410.2,4409.8,0.3265]
[1760013770696,0.3297,4410.1,4409.8,0.32869906]
[1760013771090,0.3297,4410.0,4409.8,0.32869906]
[1760013771293,0.40802,4410.2,4409.8,0.32869906]
[1760013771694,0.40803,4410.1,4409.8,0.00219906]
[1760013771999,0.3297,4410.0,4409.8,0.00219906]
[1760013772188,0.3297,4410.2,4409.8,0.00219906]
[1760013772389,0.40801,4410.3,4409.8,0.00219906]
[1760013772785,0.3297,4410.2,4409.8,0.00219906]
[1760013772988,1.1954139,4412.6,4412.2,0.40783]
[1760013773185,0.40779,4412.7,4412.0,3.2078]
[1760013773392,0.022,4412.9,4412.3,40.8]
[1760013773789,0.02494286,4412.9,4412.4,0.3265]
[1760013773990,0.02494286,4412.9,4412.8,0.3265]
[1760013774993,0.40778,4412.8,4412.6,3.2078]
[1760013775300,0.3297,4412.6,4412.4,0.40781]
[1760013775495,0.3297,4412.6,4412.3,40.8]
[1760013776003,0.3297,4412.6,4412.3,41.20782]
[1760013776297,0.7375,4412.6,4412.3,41.20782]
[1760013776492,0.4078,4412.6,4412.3,41.20782]
[1760013776692,0.3297,4412.4,4412.3,40.8]
[1760013777494,0.73749,4412.7,4412.3,40.8]
[1760013777700,0.3297,4412.4,4412.3,40.8]
[1760013779399,0.40785,4412.0,4411.6,3.2078]
[1760013779599,0.3173,4411.7,4411.6,3.61569]
[1760013779997,0.3173,4412.3,4412.0,0.3385]
[1760013780208,0.40783,4412.3,4412.0,0.40785]
[1760013780496,0.40782,4412.3,4411.7,0.232]
[1760013780800,0.5493,4412.6,4411.7,0.232]
[1760013780801,3.2944,4413.2,4412.7,0.40778]
[1760013781101,0.70277939,4413.5,4412.8,0.3385]
[1760013781298,0.47077939,4413.5,4412.8,5.3385]
[1760013781498,0.47077939,4413.5,4413.4,0.74622]
[1760013781703,0.47077939,4413.5,4413.4,3.95402]
[1760013781902,1.0,4415.0,4414.5,0.1402]
[1760013782097,0.3173,4414.9,4414.6,41.033]
[1760013782297,0.3173,4414.9,4414.6,40.8]
[1760013782498,0.3173,4413.6,4413.5,3.2078]
[1760013782696,0.3173,4413.6,4412.9,3.5463]
[1760013782897,0.361,4414.0,4412.9,3.2078]
[1760013783104,0.72498,4413.9,4413.0,0.4787]
[1760013783305,0.3173,4413.9,4413.1,0.3385]
[1760013783501,0.72498,4413.9,4413.4,3.2078]
[1760013783808,0.72503,4413.3,4413.2,40.8]
[1760013784010,0.40773,4413.3,4413.1,0.00205044]
[1760013784299,0.3173,4413.2,4413.1,0.00205044]
[1760013784501,6.41767166,4413.2,4413.1,0.00205044]
[1760013784912,0.40782,4412.4,4412.2,0.3385]
[1760013785098,0.3173,4412.3,4412.0,3.95415]
[1760013785309,0.40784,4412.2,4411.5,3.5463]
[1760013785502,0.40784,4412.2,4411.8,0.40786]
[1760013785702,0.72514,4412.2,4411.5,3.2078]
[1760013785902,0.72514,4412.2,4411.6,0.3385]
[1760013786103,0.3173,4412.2,4411.6,0.3385]
[1760013786505,0.3173,4412.2,4411.5,3.3499354]
[1760013786506,0.3173,4411.6,4411.5,3.2097354]
[1760013786710,0.31946827,4411.6,4411.5,3.2097354]
[1760013787097,0.31946827,4411.6,4411.0,3.2078]
[1760013787098,0.128,4411.5,4411.0,3.2078]
[1760013787304,0.3173,4411.1,4411.0,3.2078]
[1760013787605,0.00216827,4411.6,4411.3,0.3385]
[1760013787808,0.00216827,4411.6,4411.5,0.3385]
[1760013788199,0.00216827,4411.6,4411.5,0.34059503]
[1760013789106,0.00216827,4411.6,4411.5,3.68859503]
[1760013790411,0.00216827,4411.6,4411.5,44.48859503]
[1760013791210,0.00216827,4411.6,4411.5,49.48859503]
[1760013791405,3.2078,4412.6,4412.4,0.3385]
[1760013791604,0.4453,4413.0,4412.4,0.3385]
[1760013792008,0.4078,4412.6,4412.4,0.3385]
[1760013792216,0.4078,4412.6,4412.4,0.74631]
[1760013792414,0.4078,4412.6,4412.1,0.3385]
[1760013792415,0.3173,4412.5,4412.1,0.3385]
[1760013792611,0.40783,4412.2,4412.1,0.3385]
[1760013792821,0.40783,4412.2,4410.9,1.01988]
[1760013792822,0.128,4412.0,4411.5,44.41778503]
[1760013793014,0.3173,4412.1,4411.6,0.3385]
[1760013793211,0.40783,4412.3,4412.0,0.74635]
[1760013793406,0.128,4412.5,4411.5,44.38309503]
[1760013793714,0.40784,4412.2,4412.0,0.3385]
[1760013793906,0.40784,4412.2,4412.1,0.3385]
[1760013794315,0.72512,4412.4,4412.2,0.3385]
[1760013794511,0.4453,4412.5,4411.9,0.3385]
[1760013794712,0.128,4412.5,4411.9,0.74636]
[1760013795014,0.40784,4412.2,4411.9,0.40786]
[1760013795215,0.40783,4412.3,4412.0,0.74635]
[1760013795414,0.72513,4412.3,4412.0,0.74635]
[1760013795620,0.72514,4412.2,4412.0,0.3385]
[1760013795810,0.3173,4412.2,4412.0,0.40785]
[1760013796010,0.3173,4412.2,4412.0,0.74635]
[1760013796207,0.3173,4411.6,4411.5,0.00209503]
[1760013796509,0.8707572,4411.6,4411.5,0.00209503]
[1760013796711,8.84860601,4411.6,4411.5,0.00209503]
[1760013797019,0.128,4411.5,4410.7,0.40797]
[1760013797314,0.72528,4410.6,4410.2,0.40801]
[1760013797619,0.3173,4410.2,4409.9,3.2078]
[1760013797811,0.3173,4410.1,4410.0,41.20803]
[1760013798011,0.3173,4410.1,4410.0,41.20992784]
[1760013798207,0.3173,4410.1,4410.0,0.00189784]
[1760013798508,0.87093205,4410.1,4410.0,0.00189784]
[1760013799211,0.87093205,4410.1,4409.3,3.2078]
[1760013799212,0.3173,4409.4,4409.3,3.2078]
[1760013799413,0.55356916,4409.4,4408.2,3.2078]
[1760013799609,0.55356916,4409.4,4408.9,0.40813]
[1760013799610,0.3173,4409.1,4408.9,0.40813]
[1760013799810,3.2078,4409.7,4409.0,0.3385]
[1760013800016,0.00236682,4409.7,4409.5,0.40807]
[1760013800320,0.00236682,4409.7,4409.5,0.3385]
[1760013800513,0.00236682,4409.7,4409.2,0.40811]
[1760013800712,0.72541,4409.3,4409.0,0.00277527]
[1760013800909,0.128,4409.5,4409.0,0.00277527]
[1760013800910,0.40811,4409.2,4409.0,0.00277527]
[1760013801117,0.3173,4409.1,4409.0,0.00277527]
[1760013801716,0.5503,4409.1,4409.0,0.00277527]
[1760013802108,8.18523321,4409.1,4408.2,3.2078]
[1760013802313,0.3173,4408.3,4408.2,3.2078]
[1760013802717,0.3173,4408.9,4408.2,3.2078]
[1760013802914,0.128,4409.0,4408.4,0.40817]
[1760013803222,0.40816,4408.7,4408.4,0.40975716]
[1760013803415,0.3173,4408.5,4408.4,0.00158716]
[1760013803818,0.128,4409.0,4408.4,0.00158716]
[1760013804017,0.3173,4408.9,4408.8,0.40814]
[1760013804216,0.3173,4408.9,4408.5,0.40817]
[1760013804414,0.3173,4409.0,4408.8,0.40814]
[1760013804722,3.7581,4409.4,4409.3,0.4081]
[1760013804921,3.4408,4409.4,4409.3,0.7466]
[1760013805217,0.72541,4409.3,4408.4,0.00158716]
[1760013805415,0.3173,4409.3,4409.1,0.40812]
[1760013805715,0.3173,4409.3,4408.6,4.22822]
[1760013805716,0.3173,4409.3,4408.7,1.0204]
[1760013806018,0.40811,4409.2,4409.1,2.86709256]
[1760013806222,0.128,4408.5,4407.6,0.40825]
[1760013806420,0.3173,4408.3,4408.0,0.3385]
[1760013806610,0.3173,4408.3,4408.1,0.3385]
[1760013806809,0.7255,4408.3,4408.1,0.3385]
[1760013807013,0.7255,4408.3,4408.0,0.40822]
[1760013807214,0.3173,4408.1,4408.0,0.00278198]
[1760013807516,0.5493,4408.1,4408.0,0.00278198]
[1760013807823,0.3173,4408.1,4408.0,0.00278198]
[1760013808114,0.4082,4408.3,4408.1,0.40821]
[1760013808115,0.7255,4408.3,4408.1,0.40821]
[1760013808420,0.3413,4408.3,4408.1,0.40821]
[1760013808609,0.3413,4408.3,4408.0,0.00278198]
[1760013808610,0.3413,4408.2,4408.0,0.72990198]
[1760013808818,0.40819,4408.4,4408.1,0.40821]
[1760013809119,0.3413,4408.2,4408.1,0.40821]
[1760013809921,0.3413,4408.2,4408.1,0.72711]
[1760013810118,0.3413,4408.5,4408.4,0.40818]
[1760013811025,0.3413,4408.5,4408.4,0.72708]
[1760013811519,3.5491,4408.6,4408.4,0.3189]
[1760013811727,3.5491,4408.6,4408.4,0.72707]
[1760013812722,0.3413,4408.6,4408.5,0.3189]
[1760013813322,0.3413,4408.6,4408.5,41.1189]
[1760013813520,0.3413,4408.6,4408.5,40.8]
[1760013813926,0.5733,4408.9,4408.8,0.40815]
[1760013814123,0.40816,4408.7,4408.5,41.20817]
[1760013814323,0.4082,4408.2,4408.0,0.00278198]
[1760013814526,0.3413,4408.4,4408.3,0.3189]
[1760013814924,3.61596,4408.7,4408.5,0.3189]
[1760013814925,3.2078,4408.7,4408.5,0.3189]
[1760013815224,3.2078,4408.7,4408.6,0.72707]
[1760013815430,0.3413,4408.9,4408.8,0.40814]
[1760013816118,0.3413,4408.9,4408.8,0.72704]
[1760013817928,3.2078,4409.2,4409.1,0.3189]
[1760013818529,0.00236682,4409.7,4409.6,0.40807]
[1760013818719,0.00236682,4409.7,4409.6,0.72697]
[1760013818918,0.00236682,4409.7,4409.6,41.52697]
[1760013819330,0.34366682,4409.7,4409.6,40.8]
[1760013819531,0.54829,4409.5,4408.8,3.4398]
[1760013819823,0.1402,4409.5,4408.8,0.40814]